bitfinex/quotes_BTCUSD_20250615
["timestamp","ask_amount","ask_price","bid_price","bid_amount"]
[1749977188620,1.4033895,105360.0,105350.0,0.37466404]
[1749977188822,1.4196895,105360.0,105350.0,0.39247071]
[1749977189016,1.4196895,105360.0,105350.0,0.37466404]
[1749977189222,1.4196895,105360.0,105350.0,0.39246267]
[1749977189455,1.4196895,105360.0,105350.0,0.37466404]
[1749977189905,1.41969013,105360.0,105350.0,0.39246267]
[1749977190118,1.41969013,105360.0,105350.0,0.37466404]
[1749977190334,1.41969013,105360.0,105350.0,0.39246267]
[1749977190558,1.41969013,105360.0,105350.0,0.39246482]
[1749977190996,1.41969013,105360.0,105350.0,0.37466404]
[1749977191424,1.41969013,105360.0,105350.0,0.39246482]
[1749977191928,1.41019905,105360.0,105350.0,0.39246483]
[1749977192369,1.41969013,105360.0,105350.0,0.39246483]
[1749977192589,1.41019905,105360.0,105350.0,0.39246483]
[1749977192808,0.50092223,105360.0,105350.0,0.39246481]
[1749977193025,1.38739013,105360.0,105350.0,0.37466404]
[1749977193241,1.38739013,105360.0,105350.0,0.39246481]
[1749977193678,1.36502635,105360.0,105350.0,0.39246483]
[1749977193897,1.35891716,105360.0,105350.0,0.39246465]
[1749977194335,1.34942635,105360.0,105350.0,0.37466404]
[1749977194555,1.34942635,105360.0,105350.0,0.39246456]
[1749977194816,1.34942635,105360.0,105350.0,0.39246406]
[1749977195023,1.34942635,105360.0,105350.0,0.37466404]
[1749977195238,1.35891707,105360.0,105350.0,0.39246399]
[1749977195453,1.35891707,105360.0,105350.0,0.39246401]
[1749977195680,1.34942635,105360.0,105350.0,0.39246401]
[1749977195912,1.23993572,105360.0,105350.0,0.39246404]
[1749977196147,0.3469589,105360.0,105350.0,0.48293907]
[1749977196370,0.84344731,105360.0,105350.0,0.4386044]
[1749977196799,0.84344731,105360.0,105350.0,0.43860343]
[1749977197247,0.84344731,105360.0,105350.0,0.42080489]
[1749977197476,0.79344731,105360.0,105350.0,0.43861821]
[1749977197693,0.84344731,105360.0,105350.0,0.43861825]
[1749977198121,0.84344731,105360.0,105350.0,0.43861826]
[1749977198580,0.84344731,105360.0,105350.0,0.4386183]
[1749977199444,0.84344731,105360.0,105350.0,0.42080489]
[1749977199916,0.84344731,105360.0,105350.0,0.4386183]
[1749977200149,0.84344731,105360.0,105350.0,0.43861826]
[1749977200622,0.84344731,105360.0,105350.0,0.42080489]
[1749977201057,0.84344731,105360.0,105350.0,0.43861831]
[1749977201272,0.84344731,105360.0,105350.0,0.42241831]
[1749977201502,1.28993572,105360.0,105350.0,0.38920489]
[1749977201955,0.84344731,105360.0,105350.0,0.38920489]
[1749977203579,1.28993572,105360.0,105350.0,0.38920489]
[1749977205369,1.29942617,105360.0,105350.0,0.38920489]
[1749977205670,1.28993572,105360.0,105350.0,0.38920489]
[1749977206985,1.34011716,105360.0,105350.0,0.54324489]
[1749977207883,1.34011707,105360.0,105350.0,0.54324489]
[1749977209158,1.32113572,105360.0,105350.0,0.54324489]
[1749977209363,1.33062626,105360.0,105350.0,0.54324489]
[1749977210432,0.43764944,105360.0,105350.0,0.54324489]
[1749977210637,1.33062626,105360.0,105350.0,0.54324489]
[1749977210968,1.32113572,105360.0,105350.0,0.54324489]
[1749977211182,1.33062626,105360.0,105350.0,0.54324489]
[1749977212128,1.32113572,105360.0,105350.0,0.54324489]
[1749977212364,1.33062626,105360.0,105350.0,0.54324489]
[1749977213236,0.4281589,105360.0,105350.0,0.54324489]
[1749977213449,1.33062617,105360.0,105350.0,0.54324489]
[1749977214928,1.32113572,105360.0,105350.0,0.54324489]
[1749977215131,1.33062617,105360.0,105350.0,0.54324489]
[1749977217174,1.32113572,105360.0,105350.0,0.54324489]
[1749977217811,1.30583572,105360.0,105350.0,0.54324489]
[1749977218031,1.31532626,105360.0,105350.0,0.54324489]
[1749977218235,1.30583572,105360.0,105350.0,0.54324489]
[1749977220568,1.30570996,105360.0,105350.0,0.54324489]
[1749977223748,0.41273314,105360.0,105350.0,0.54324489]
[1749977224198,1.30570996,105360.0,105350.0,0.54324489]
[1749977225300,1.32080996,105360.0,105350.0,0.54324489]
[1749977228533,1.30570996,105360.0,105350.0,0.54324489]
[1749977230106,1.31520041,105360.0,105350.0,0.54324489]
[1749977230321,1.33020041,105360.0,105350.0,0.54324489]
[1749977231174,1.3299992,105360.0,105350.0,0.54324489]
[1749977231397,1.32536727,105360.0,105350.0,0.54324489]
[1749977231936,1.3348579,105360.0,105350.0,0.54324489]
[1749977233342,1.32536727,105360.0,105350.0,0.54252489]
[1749977234893,1.3348579,105360.0,105350.0,0.54252489]
[1749977235569,1.33485781,105360.0,105350.0,0.54252489]
[1749977235993,1.32536727,105360.0,105350.0,0.54252489]
[1749977238878,1.3348579,105360.0,105350.0,0.54252489]
[1749977239094,1.32536727,105360.0,105350.0,0.54252489]
[1749977239555,1.3348579,105360.0,105350.0,0.54252489]
[1749977239985,1.31587682,105360.0,105350.0,0.54252489]
[1749977240198,0.85438841,105360.0,105350.0,0.54252489]
[1749977241717,0.85438841,105360.0,105350.0,0.56033892]
[1749977242170,0.85438841,105360.0,105350.0,0.560339]
[1749977242725,0.85438841,105360.0,105350.0,0.54252489]
[1749977243534,0.85438841,105360.0,105350.0,0.560339]
[1749977244079,0.85438841,105360.0,105350.0,0.56033901]
[1749977244355,0.85438841,105360.0,105350.0,0.54252489]
[1749977244589,0.85438841,105360.0,105350.0,0.56033899]
[1749977244966,0.85438841,105360.0,105350.0,0.54252489]
[1749977245178,0.85438841,105360.0,105350.0,0.56033899]
[1749977245380,0.85438841,105360.0,105350.0,0.54252489]
[1749977245529,0.85438841,105360.0,105350.0,0.56033899]
[1749977245747,0.85438841,105360.0,105350.0,0.54252489]
[1749977245935,0.85438841,105360.0,105350.0,0.56033899]
[1749977246569,0.85438841,105360.0,105350.0,0.56033898]
[1749977246774,0.85438841,105360.0,105350.0,0.54252489]
[1749977246976,0.85934731,105360.0,105350.0,0.56033898]
[1749977247611,0.85934731,105360.0,105350.0,0.56033889]
[1749977247816,0.85934731,105360.0,105350.0,0.5603389]
[1749977248219,0.85934731,105360.0,105350.0,0.56033899]
[1749977248426,0.85934731,105360.0,105350.0,0.56033885]
[1749977248610,0.85934731,105360.0,105350.0,0.56033883]
[1749977248810,0.85934731,105360.0,105350.0,0.56033881]
[1749977249008,0.85934731,105360.0,105350.0,0.56033895]
[1749977249219,0.85934731,105360.0,105350.0,0.54252489]
[1749977249422,0.85934731,105360.0,105350.0,0.56033896]
[1749977249657,0.85934731,105360.0,105350.0,0.560339]
[1749977249928,0.85934731,105360.0,105350.0,0.56033901]
[1749977250599,0.85934731,105360.0,105350.0,0.54252489]
[1749977250836,0.85934731,105360.0,105350.0,0.56033901]
[1749977251050,0.85934731,105360.0,105350.0,0.56033902]
[1749977251264,1.30583572,105360.0,105350.0,0.54252489]
[1749977251480,1.30583572,105360.0,105350.0,0.56033902]
[1749977251690,1.30583572,105360.0,105350.0,0.54252489]
[1749977251899,1.30583572,105360.0,105350.0,0.56033902]
[1749977253016,1.30583572,105360.0,105350.0,0.56033901]
[1749977253467,1.30583572,105360.0,105350.0,0.560339]
[1749977254767,1.30583572,105360.0,105350.0,0.54252489]
[1749977255006,1.30583572,105360.0,105350.0,0.56033902]
[1749977255219,1.30583572,105360.0,105350.0,0.54252489]
[1749977255437,1.30583572,105360.0,105350.0,0.56033902]
[1749977255657,1.30583572,105360.0,105350.0,0.56033903]
[1749977255874,1.32233572,105360.0,105350.0,0.56033919]
[1749977256120,1.33182626,105360.0,105350.0,0.56033919]
[1749977256331,1.33182626,105360.0,105350.0,0.56033921]
[1749977256760,1.32233572,105360.0,105350.0,0.56033921]
[1749977256978,1.33182626,105360.0,105350.0,0.56033921]
[1749977257683,1.33182626,105360.0,105350.0,0.34936489]
[1749977257901,1.39131698,105360.0,105350.0,0.52762404]
[1749977258119,1.38182626,105360.0,105350.0,0.5454387]
[1749977258337,1.39131698,105360.0,105350.0,0.5454387]
[1749977258554,1.38182626,105360.0,105350.0,0.5454387]
[1749977258792,1.39131689,105360.0,105350.0,0.54543875]
[1749977259015,1.39131689,105360.0,105350.0,0.52762404]
[1749977259231,1.38182626,105360.0,105350.0,0.52762404]
[1749977259448,1.38182626,105360.0,105350.0,0.54543875]
[1749977259658,1.38182626,105360.0,105350.0,0.52762404]
[1749977259875,1.38182626,105360.0,105350.0,0.54543657]
[1749977260521,1.38182626,105360.0,105350.0,0.52762404]
[1749977260740,1.38182626,105360.0,105350.0,0.54543657]
[1749977261158,1.38182626,105360.0,105350.0,0.52762404]
[1749977261606,1.38182626,105360.0,105350.0,0.54543657]
[1749977262486,1.38182626,105360.0,105350.0,0.52762404]
[1749977262724,1.38182626,105360.0,105350.0,0.54543657]
[1749977262937,1.37233572,105360.0,105350.0,0.54543657]
[1749977263166,1.38182617,105360.0,105350.0,0.52762404]
[1749977263385,1.38182617,105360.0,105350.0,0.54543657]
[1749977263831,1.38182617,105360.0,105350.0,0.52762404]
[1749977264041,1.38182617,105360.0,105350.0,0.54543657]
[1749977264250,1.38182617,105360.0,105350.0,0.52762404]
[1749977264672,1.38182617,105360.0,105350.0,0.54543657]
[1749977264889,1.38182617,105360.0,105350.0,0.52762404]
[1749977265560,1.38182617,105360.0,105350.0,0.54543657]
[1749977265772,1.38182617,105360.0,105350.0,0.52762404]
[1749977266228,1.38182617,105360.0,105350.0,0.54543657]
[1749977266448,1.38182617,105360.0,105350.0,0.52762404]
[1749977266665,1.37233572,105360.0,105350.0,0.54543657]
[1749977267956,1.38182617,105360.0,105350.0,0.54543875]
[1749977268170,1.37233572,105360.0,105350.0,0.52762404]
[1749977268384,1.37233572,105360.0,105350.0,0.54543873]
[1749977268597,1.37233572,105360.0,105350.0,0.54543875]
[1749977268888,1.37233572,105360.0,105350.0,0.52762404]
[1749977269074,1.37233572,105360.0,105350.0,0.54543875]
[1749977269545,1.37233572,105360.0,105350.0,0.54543874]
[1749977269968,1.37233572,105360.0,105350.0,0.54543873]
[1749977270887,1.37233572,105360.0,105350.0,0.54543872]
[1749977271072,1.37233572,105360.0,105350.0,0.52762404]
[1749977271318,1.37233572,105360.0,105350.0,0.54543873]
[1749977271545,1.37233572,105360.0,105350.0,0.52762404]
[1749977271979,1.37233572,105360.0,105350.0,0.54543873]
[1749977272413,1.37233572,105360.0,105350.0,0.52762404]
[1749977272881,1.38182626,105360.0,105350.0,0.54543883]
[1749977273114,1.38182626,105360.0,105350.0,0.54543887]
[1749977273340,1.38182617,105360.0,105350.0,0.54543889]
[1749977273566,1.38182617,105360.0,105350.0,0.52762404]
[1749977273793,1.38182617,105360.0,105350.0,0.54543886]
[1749977274024,1.38182617,105360.0,105350.0,0.35263886]
[1749977274256,1.3913168,105360.0,105350.0,0.54515887]
[1749977274481,1.3913168,105360.0,105350.0,0.54515889]
[1749977274699,1.3913168,105360.0,105350.0,0.5451589]
[1749977274913,1.37233572,105360.0,105350.0,0.5451589]
[1749977275157,1.38182617,105360.0,105350.0,0.54515881]
[1749977275374,1.39131671,105360.0,105350.0,0.54515879]
[1749977275595,1.39131671,105360.0,105350.0,0.54515887]
[1749977276038,1.38182617,105360.0,105350.0,0.54515887]
[1749977276224,1.39131671,105360.0,105350.0,0.54515887]
[1749977276462,1.39131671,105360.0,105350.0,0.54515882]
[1749977276693,1.38182626,105360.0,105350.0,0.54515887]
[1749977276926,1.38182626,105360.0,105350.0,0.52734404]
[1749977277147,1.38182626,105360.0,105350.0,0.54515885]
[1749977277590,1.38182626,105360.0,105350.0,0.54515884]
[1749977277808,1.38182626,105360.0,105350.0,0.52734404]
[1749977278052,1.38182626,105360.0,105350.0,0.54515885]
[1749977278490,1.37233572,105360.0,105350.0,0.54515887]
[1749977278714,1.38182617,105360.0,105350.0,0.54515887]
[1749977278937,1.38182617,105360.0,105350.0,0.52734404]
[1749977279233,1.38182617,105360.0,105350.0,0.54515879]
[1749977279446,1.42507801,105360.0,105350.0,0.35263879]
[1749977279661,1.3913168,105360.0,105350.0,0.35263887]
[1749977279876,1.3913168,105360.0,105350.0,0.52738404]
[1749977280313,1.4008077,105360.0,105350.0,0.54515513]
[1749977280550,1.40080761,105360.0,105350.0,0.52734404]
[1749977280754,1.41029869,105360.0,105350.0,0.33482404]
[1749977280976,1.40080761,105360.0,105350.0,0.54515543]
[1749977281207,1.4102986,105360.0,105350.0,0.54515536]
[1749977281430,1.4388266,105360.0,105350.0,0.54515553]
[1749977281880,1.42933561,105360.0,105350.0,0.52734404]
[1749977282105,1.4388266,105360.0,105350.0,0.54515553]
[1749977282325,1.4388266,105360.0,105350.0,0.52734404]
[1749977282549,1.4388266,105360.0,105350.0,0.54515553]
[1749977283017,1.42933561,105360.0,105350.0,0.54515553]
[1749977283236,1.43882651,105360.0,105350.0,0.52734404]
[1749977283885,1.43882651,105360.0,105350.0,0.54515553]
[1749977284335,1.4483175,105360.0,105350.0,0.54515553]
[1749977284576,1.4483175,105360.0,105350.0,0.54515551]
[1749977284804,1.44831813,105360.0,105350.0,0.54515551]
[1749977285026,1.43882705,105360.0,105350.0,0.52734404]
[1749977285246,1.43882705,105360.0,105350.0,0.54515552]
[1749977285469,1.42933606,105360.0,105350.0,0.52734404]
[1749977285691,1.42933606,105360.0,105350.0,0.54515553]
[1749977285921,1.42933606,105360.0,105350.0,0.52734404]
[1749977286140,1.42933606,105360.0,105350.0,0.54515554]
[1749977286359,1.42933606,105360.0,105350.0,0.54515551]
[1749977286580,1.42933606,105360.0,105350.0,0.52734404]
[1749977286799,1.42933606,105360.0,105350.0,0.54515551]
[1749977287250,1.41984516,105360.0,105350.0,0.52734404]
[1749977287498,1.41984516,105360.0,105350.0,0.54515528]
[1749977287743,1.41984516,105360.0,105350.0,0.54515521]
[1749977287994,1.42933615,105360.0,105350.0,0.54515489]
[1749977288222,1.41984516,105360.0,105350.0,0.54515499]
[1749977288617,1.41984516,105360.0,105350.0,0.52734404]
[1749977288840,1.41984516,105360.0,105350.0,0.5451554]
[1749977289041,0.52686834,105360.0,105350.0,0.54515539]
[1749977289249,1.41984516,105360.0,105350.0,0.52734404]
[1749977289507,1.41984516,105360.0,105350.0,0.54515536]
[1749977289731,1.41984516,105360.0,105350.0,0.54515923]
[1749977290177,1.41984516,105360.0,105350.0,0.52734404]
[1749977290398,1.41984516,105360.0,105350.0,0.54515921]
[1749977290617,1.41984516,105360.0,105350.0,0.52734404]
[1749977290858,1.41984516,105360.0,105350.0,0.5451592]
[1749977291086,1.41984516,105360.0,105350.0,0.54515919]
[1749977291538,1.41984516,105360.0,105350.0,0.52734404]
[1749977291764,1.41984516,105360.0,105350.0,0.54515919]
[1749977291985,1.41984516,105360.0,105350.0,0.54515906]
[1749977292211,1.41984516,105360.0,105350.0,0.52734404]
[1749977292433,1.41984516,105360.0,105350.0,0.54515916]
[1749977292877,1.41984516,105360.0,105350.0,0.52734404]
[1749977293096,1.41984516,105360.0,105350.0,0.54515917]
[1749977293315,1.41984516,105360.0,105350.0,0.52734404]
[1749977293772,1.41984516,105360.0,105350.0,0.54515917]
[1749977294781,1.41984507,105360.0,105350.0,0.52734404]
[1749977295003,1.41984507,105360.0,105350.0,0.54515905]
[1749977295219,1.41984507,105360.0,105350.0,0.52734404]
[1749977295413,1.41984507,105360.0,105350.0,0.54515915]
[1749977295659,1.41984507,105360.0,105350.0,0.54515917]
[1749977296096,1.41984507,105360.0,105350.0,0.54515915]
[1749977296319,1.41984507,105360.0,105350.0,0.54515916]
[1749977296571,1.38436372,105360.0,105350.0,0.54515903]
[1749977296817,1.39385417,105360.0,105350.0,0.54515901]
[1749977297055,1.39385417,105360.0,105350.0,0.54515872]
[1749977297271,1.39385417,105360.0,105350.0,0.54515873]
[1749977297929,1.39385417,105360.0,105350.0,0.52734404]
[1749977298117,1.39385417,105360.0,105350.0,0.54515873]
[1749977298355,1.39385417,105360.0,105350.0,0.52734404]
[1749977298601,1.39385417,105360.0,105350.0,0.54515873]
[1749977298847,1.39385417,105360.0,105350.0,0.52734404]
[1749977299035,0.50087735,105360.0,105350.0,0.52734404]
[1749977299297,1.39385417,105360.0,105350.0,0.54515873]
[1749977299530,1.39221417,105360.0,105350.0,0.54515873]
[1749977300199,1.39221417,105360.0,105350.0,0.52734404]
[1749977300849,1.39221417,105360.0,105350.0,0.61849575]
[1749977301065,1.39221417,105360.0,105350.0,0.60068107]
[1749977301277,1.39221417,105360.0,105350.0,0.61849575]
[1749977301532,1.39221417,105360.0,105350.0,0.61849569]
[1749977301781,1.39221417,105360.0,105350.0,0.60068107]
[1749977302300,1.39221417,105360.0,105350.0,0.61849566]
[1749977302539,1.39221417,105360.0,105350.0,0.6184957]
[1749977302750,1.39221417,105360.0,105350.0,0.52734404]
[1749977302963,1.4017048,105360.0,105350.0,0.52734404]
[1749977303361,1.39221417,105360.0,105350.0,0.35263872]
[1749977303578,1.39221417,105360.0,105350.0,0.54511872]
[1749977303802,1.39221417,105360.0,105350.0,0.54511869]
[1749977303998,1.39221417,105360.0,105350.0,0.54511864]
[1749977304644,1.39221417,105360.0,105350.0,0.54511853]
[1749977304853,1.4017048,105360.0,105350.0,0.5451188]
[1749977305067,1.39221417,105360.0,105350.0,0.5451188]
[1749977305271,1.39221417,105360.0,105350.0,0.52730404]
[1749977305473,1.39221417,105360.0,105350.0,0.35263892]
[1749977305715,1.39221417,105360.0,105350.0,0.52730404]
[1749977305919,1.4017048,105360.0,105350.0,0.52730404]
[1749977306104,1.4176048,105360.0,105350.0,0.5451187]
[1749977306368,1.4176048,105360.0,105350.0,0.52730404]
[1749977306587,1.4176048,105360.0,105350.0,0.54511869]
[1749977306797,1.4176048,105360.0,105350.0,0.54511882]
[1749977307008,1.40811417,105360.0,105350.0,0.52730404]
[1749977307243,1.41760471,105360.0,105350.0,0.5451189]
[1749977307461,1.41760471,105360.0,105350.0,0.52730404]
[1749977307665,1.41760471,105360.0,105350.0,0.5451189]
[1749977308082,1.40811417,105360.0,105350.0,0.54511888]
[1749977308287,1.39862372,105360.0,105350.0,0.52730404]
[1749977308494,1.40811426,105360.0,105350.0,0.54511854]
[1749977308932,1.40811426,105360.0,105350.0,0.52730404]
[1749977309560,1.37958626,105360.0,105350.0,0.52730404]
[1749977310030,1.38907698,105360.0,105350.0,0.52730404]
[1749977310461,1.39856788,105360.0,105350.0,0.52730404]
[1749977311096,1.38907698,105360.0,105350.0,0.52730404]
[1749977311313,1.39856788,105360.0,105350.0,0.52730404]
[1749977314881,1.40805896,105360.0,105350.0,0.52730404]
[1749977315097,1.40805887,105360.0,105350.0,0.52730413]
[1749977315324,1.59788477,105360.0,105350.0,0.52730413]
[1749977316193,1.58839405,105360.0,105350.0,0.5083208]
[1749977318247,1.56941216,105360.0,105350.0,0.4895772]
[1749977318461,1.56941216,105360.0,105350.0,0.49906909]
[1749977319566,1.56941216,105360.0,105350.0,0.5085608]
[1749977320472,1.56941216,105360.0,105350.0,0.5180526]
[1749977320916,1.56941216,105360.0,105350.0,0.52754422]
[1749977321364,1.38907761,105360.0,105350.0,0.52754422]
[1749977321585,1.39856878,105360.0,105350.0,0.52754368]
[1749977322735,1.40806004,105360.0,105350.0,0.52754368]
[1749977323223,1.40806004,105360.0,105350.0,0.52744573]
[1749977325930,1.5978854,105360.0,105350.0,0.5179542]
[1749977329461,1.39856878,105360.0,105350.0,0.52744573]
[1749977330115,1.38907761,105360.0,105350.0,0.52744573]
[1749977330307,1.39856878,105360.0,105350.0,0.52744573]
[1749977330833,1.38907761,105360.0,105350.0,0.52744573]
[1749977331393,1.39856878,105360.0,105350.0,0.52744573]
[1749977340123,1.58839414,105360.0,105350.0,0.3252342]
[1749977340401,1.58839414,105360.0,105350.0,0.50838303]
[1749977341025,1.58839414,105360.0,105350.0,0.51787465]
[1749977342332,1.58839414,105360.0,105350.0,0.50838303]
[1749977346321,1.58839414,105360.0,105350.0,0.35502303]
[1749977348305,1.60161553,105360.0,105350.0,0.35502312]
[1749977350382,1.60161553,105360.0,105350.0,0.36451483]
[1749977351048,1.60161553,105360.0,105350.0,0.35502312]
[1749977351267,1.60161553,105360.0,105350.0,0.36451483]
[1749977352392,1.60161553,105360.0,105350.0,0.32523483]
[1749977352615,1.74540445,105360.0,105350.0,0.00118205]
[1749977352834,1.74540445,105360.0,105350.0,0.04046205]
[1749977353276,1.77393445,105360.0,105350.0,0.04046205]
[1749977356052,1.77393445,105360.0,105350.0,0.00118205]
[1749977356476,2.22042286,105360.0,105350.0,0.00118205]
[1749977356709,1.82659481,105360.0,105350.0,0.00118205]
[1749977356869,1.8023245,105360.0,105350.0,0.00118205]
[1749977357301,1.8023245,105360.0,105310.0,0.0116145]
[1749977357302,0.63078674,105320.0,105310.0,0.0116145]
[1749977357485,1.57376356,105320.0,105310.0,0.0116145]
[1749977357862,1.72708356,105320.0,105310.0,0.0116145]
[1749977358062,1.77829215,105320.0,105310.0,0.0116145]
[1749977358477,1.77829215,105320.0,105310.0,0.01147275]
[1749977358686,1.78325105,105320.0,105310.0,0.01004271]
[1749977358904,1.79225105,105320.0,105310.0,0.01004271]
[1749977359316,1.54077573,105320.0,105310.0,0.01004271]
[1749977359518,1.69425573,105320.0,105310.0,0.01004271]
[1749977359739,1.70546881,105320.0,105310.0,0.01004271]
[1749977359949,1.70546881,105320.0,105310.0,0.01104271]
[1749977360167,1.70546881,105320.0,105300.0,0.02]
[1749977360168,0.67171107,105310.0,105300.0,0.02]
[1749977360387,1.24530741,105310.0,105300.0,0.02]
[1749977360610,1.09178741,105310.0,105300.0,0.02]
[1749977360820,1.10128291,105310.0,105300.0,0.22892659]
[1749977361058,1.18229732,105310.0,105300.0,0.2384229]
[1749977361252,1.23229732,105310.0,105300.0,0.22892677]
[1749977361464,1.22680182,105310.0,105300.0,0.22992677]
[1749977361670,1.22680182,105310.0,105300.0,0.25724844]
[1749977361883,1.22680182,105310.0,105300.0,0.26674475]
[1749977362098,0.82589635,105310.0,105300.0,0.37248255]
[1749977362341,1.03915185,105310.0,105300.0,0.37248158]
[1749977362550,0.87589626,105310.0,105300.0,0.37248179]
[1749977362765,0.8569058,105310.0,105300.0,0.41176161]
[1749977362975,0.86640112,105310.0,105300.0,0.39393737]
[1749977363242,0.87589635,105310.0,105300.0,0.41176115]
[1749977363452,0.87589626,105310.0,105300.0,0.41176104]
[1749977363667,0.87589626,105310.0,105300.0,0.42630189]
[1749977363668,0.378543,105310.0,105300.0,0.42630189]
[1749977363895,0.06,105310.0,105300.0,0.61100092]
[1749977364110,0.06,105310.0,105300.0,0.6109998]
[1749977364336,0.01,105310.0,105300.0,0.66876758]
[1749977364562,0.01,105310.0,105300.0,0.68658751]
[1749977364790,0.01,105310.0,105300.0,0.68658745]
[1749977365012,0.01,105310.0,105300.0,0.68658691]
[1749977365442,0.00296,105310.0,105300.0,0.66876758]
[1749977365656,0.00496,105310.0,105300.0,0.68658716]
[1749977365872,0.00496,105310.0,105300.0,0.68658707]
[1749977366096,0.00496,105310.0,105300.0,0.66876758]
[1749977366330,0.002,105310.0,105300.0,0.68558713]
[1749977366540,0.002,105310.0,105300.0,0.66876758]
[1749977366755,0.005,105310.0,105300.0,0.6865871]
[1749977366991,0.005,105310.0,105300.0,0.68649115]
[1749977367209,0.002,105310.0,105300.0,0.60990163]
[1749977367420,0.003,105310.0,105300.0,0.60990177]
[1749977367638,0.003,105310.0,105300.0,0.60990164]
[1749977367847,0.003,105310.0,105300.0,0.60990166]
[1749977368277,0.003,105310.0,105300.0,0.59217822]
[1749977368483,0.003,105310.0,105300.0,0.60990167]
[1749977368692,0.003,105310.0,105300.0,0.60990165]
[1749977368908,0.003,105310.0,105300.0,0.60990155]
[1749977369117,0.003,105310.0,105300.0,0.61966985]
[1749977369349,0.003,105310.0,105300.0,0.6099014]
[1749977369562,0.003,105310.0,105300.0,0.60990161]
[1749977369778,0.003,105310.0,105300.0,0.60990178]
[1749977369999,0.003,105310.0,105300.0,0.59217822]
[1749977370496,0.003,105310.0,105300.0,0.60990173]
[1749977370697,0.003,105310.0,105300.0,0.689887]
[1749977371372,0.003,105310.0,105300.0,0.68988701]
[1749977371577,0.003,105310.0,105300.0,0.67216353]
[1749977371787,0.003,105310.0,105300.0,0.68988693]
[1749977372166,0.003,105310.0,105300.0,0.68988687]
[1749977372364,0.003,105310.0,105300.0,0.67216353]
[1749977372678,0.003,105310.0,105300.0,0.68988694]
[1749977373085,0.003,105310.0,105300.0,0.67216353]
[1749977373295,0.003,105310.0,105300.0,0.68988699]
[1749977373841,0.003,105310.0,105300.0,0.68988698]
[1749977374068,0.003,105310.0,105300.0,0.68988697]
[1749977374282,0.003,105310.0,105300.0,0.67216353]
[1749977374704,0.003,105310.0,105300.0,0.60990133]
[1749977374953,0.003,105310.0,105300.0,0.59217822]
[1749977375441,0.003,105310.0,105300.0,0.60990117]
[1749977375645,0.003,105310.0,105300.0,0.59217822]
[1749977375859,0.003,105310.0,105300.0,0.60999726]
[1749977376060,0.003,105310.0,105300.0,0.59217822]
[1749977376278,0.003,105310.0,105300.0,0.60999724]
[1749977376472,0.003,105310.0,105300.0,0.59217822]
[1749977376674,0.003,105310.0,105300.0,0.60999724]
[1749977377818,0.003,105310.0,105300.0,0.6899921]
[1749977378037,0.003,105310.0,105300.0,0.67217308]
[1749977378214,0.003,105310.0,105300.0,0.6899921]
[1749977378891,0.003,105310.0,105300.0,0.60999724]
[1749977379559,0.003,105310.0,105300.0,0.59217822]
[1749977379772,0.003,105310.0,105300.0,0.60999724]
[1749977379995,0.003,105310.0,105300.0,0.59217822]
[1749977380220,0.003,105310.0,105300.0,0.60999724]
[1749977380634,0.003,105310.0,105300.0,0.69988596]
[1749977381834,0.003,105310.0,105300.0,0.68832744]
[1749977382504,0.003,105310.0,105300.0,0.96200744]
[1749977383478,0.003,105310.0,105300.0,0.96020744]
[1749977387491,0.003,105310.0,105300.0,1.26146897]
[1749977388531,0.00047512,105320.0,105310.0,0.23294256]
[1749977388738,0.00047512,105320.0,105310.0,0.36118432]
[1749977389769,0.00147512,105320.0,105310.0,0.36118432]
[1749977390023,0.00447512,105320.0,105310.0,0.36118432]
[1749977390659,0.00447512,105320.0,105310.0,0.4139739]
[1749977391343,0.00447512,105320.0,105310.0,0.6080539]
[1749977392324,0.00447512,105320.0,105310.0,0.4139739]
[1749977392548,0.00447512,105320.0,105310.0,0.6080539]
[1749977397280,0.00447512,105320.0,105310.0,1.05463692]
[1749977399004,0.00447512,105320.0,105310.0,1.05447692]
[1749977401101,0.00447512,105320.0,105310.0,1.00168734]
[1749977404092,0.00447512,105320.0,105310.0,0.55510432]
[1749977404285,0.00447512,105320.0,105310.0,1.00168734]
[1749977407956,0.00447512,105320.0,105310.0,0.55510432]
[1749977408176,0.00447512,105320.0,105310.0,1.00168734]
[1749977408386,0.00447512,105320.0,105310.0,1.09783656]
[1749977409284,0.48185814,105320.0,105310.0,0.32918432]
[1749977409504,0.48185814,105320.0,105310.0,0.31464347]
[1749977409717,0.53185814,105320.0,105310.0,0.31464347]
[1749977409931,0.53185814,105320.0,105310.0,0.32918432]
[1749977410135,0.53185814,105320.0,105310.0,0.52310432]
[1749977410312,0.53185814,105320.0,105310.0,0.50856347]
[1749977410495,0.53185814,105320.0,105310.0,0.32918432]
[1749977410690,0.53185814,105320.0,105310.0,0.52310432]
[1749977410954,0.53185814,105320.0,105310.0,0.32918432]
[1749977411090,0.48185814,105320.0,105310.0,0.52310432]
[1749977411311,0.48237287,105320.0,105310.0,0.52310432]
[1749977411498,0.48237287,105320.0,105310.0,0.32918432]
[1749977411707,0.48237287,105320.0,105310.0,0.52310432]
[1749977411918,1.28845919,105320.0,105310.0,0.09624176]
[1749977412125,1.47835718,105320.0,105310.0,0.09624176]
[1749977412389,1.50101624,105320.0,105310.0,0.08674067]
[1749977412511,0.67021116,105310.0,105300.0,0.1724]
[1749977412715,1.08630018,105310.0,105300.0,0.10494067]
[1749977412971,1.07680468,105310.0,105300.0,0.10494067]
[1749977413176,1.10534668,105310.0,105300.0,0.13519958]
[1749977413548,1.10534668,105310.0,105300.0,0.12569849]
[1749977413990,1.10534668,105310.0,105300.0,0.31562759]
[1749977414405,1.095851,105310.0,105300.0,0.06693631]
[1749977414520,1.095851,105310.0,105300.0,0.29662983]
[1749977414720,1.099851,105310.0,105300.0,0.29761981]
[1749977415186,1.107851,105310.0,105300.0,0.2976097]
[1749977415620,1.107851,105310.0,105300.0,0.2881031]
[1749977415998,1.107851,105310.0,105300.0,0.29642089]
[1749977416449,1.107851,105310.0,105300.0,0.28691429]
[1749977416663,1.107851,105310.0,105300.0,0.2690899]
[1749977416809,1.1370838,105310.0,105300.0,0.27740769]
[1749977417016,1.1370838,105310.0,105300.0,0.27740771]
[1749977417213,1.1370838,105310.0,105300.0,0.27739751]
[1749977417418,1.1370838,105310.0,105300.0,0.28689381]
[1749977417644,0.55006976,105310.0,105300.0,0.38010885]
[1749977417848,0.95666265,105310.0,105300.0,0.3622845]
[1749977418045,0.96615797,105310.0,105300.0,0.3622845]
[1749977418694,0.96615797,105310.0,105300.0,0.38010822]
[1749977418895,0.97111687,105310.0,105300.0,0.38010822]
[1749977419106,0.97111696,105310.0,105300.0,0.38010822]
[1749977419236,0.97111687,105310.0,105300.0,0.3801082]
[1749977419441,0.97111687,105310.0,105300.0,0.3622845]
[1749977419652,0.97111687,105310.0,105300.0,0.38010804]
[1749977419859,0.97111687,105310.0,105300.0,0.38010814]
[1749977420076,0.97111687,105310.0,105300.0,0.38010811]
[1749977420448,0.97102711,105310.0,105300.0,0.38010819]